[Event "Titled Tuesday Blitz November 07 Late 2023"]
[White "Le Goff, Ronan"]
[Black "Hong, Andrew"]
[WhiteFideId "612073"]
[BlackFideId "2099438"]
[WhiteElo "2493"]
[BlackElo "2975"]
[Result "0-1"]
[Round "1"]
[TimeControl "180+1"]
[Date "2023.11.07"]
[WhiteClock "0:00:26"]
[BlackClock "0:00:47"]
[Board "18"]

1. d4 {[%clk 0:03:00]}  Nf6 {[%clk 0:02:59]} 2. c4 {[%clk 0:02:55]}  d6 {[%clk 0:02:56]} 3. Nc3 {[%clk 0:02:51]}  Nbd7 {[%clk 0:02:56]} 4. e4 {[%clk 0:02:40]}  e5 {[%clk 0:02:56]} 5. Nf3 {[%clk 0:02:39]}  g6 {[%clk 0:02:55]} 6. h3 {[%clk 0:02:37]}  Bg7 {[%clk 0:02:55]} 7. Be2 {[%clk 0:02:38]}  O-O {[%clk 0:02:55]} 8. O-O {[%clk 0:02:34]}  exd4 {[%clk 0:02:55]} 9. Nxd4 {[%clk 0:02:33]}  Re8 {[%clk 0:02:55]} 10. Bf3 {[%clk 0:02:32]}  Nc5 {[%clk 0:02:54]} 11. Re1 {[%clk 0:02:31]}  Nfd7 {[%clk 0:02:51]} 12. Nb3 {[%clk 0:02:16]}  Ne5 {[%clk 0:02:47]} 13. Be2 {[%clk 0:02:14]}  Be6 {[%clk 0:02:45]} 14. Nxc5 {[%clk 0:02:13]}  dxc5 {[%clk 0:02:46]} 15. Nd5 {[%clk 0:02:12]}  c6 {[%clk 0:02:34]} 16. Ne3 {[%clk 0:02:10]}  Qxd1 {[%clk 0:02:34]} 17. Rxd1 {[%clk 0:02:09]}  Rad8 {[%clk 0:02:35]} 18. Bd2 {[%clk 0:01:51]}  Rd4 {[%clk 0:02:31]} 19. Bc3 {[%clk 0:01:45]}  Rxe4 {[%clk 0:02:30]} 20. Bf1 {[%clk 0:01:41]}  Nxc4 {[%clk 0:02:27]} 21. Nxc4 {[%clk 0:01:37]}  Bxc4 {[%clk 0:02:09]} 22. Bxg7 {[%clk 0:01:25]}  Kxg7 {[%clk 0:01:56]} 23. Bxc4 {[%clk 0:01:24]}  Rxc4 {[%clk 0:01:56]} 24. Rd7 {[%clk 0:01:25]}  Rb4 {[%clk 0:01:55]} 25. b3 {[%clk 0:01:23]}  Re2 {[%clk 0:01:53]} 26. Rc7 {[%clk 0:01:20]}  a5 {[%clk 0:01:51]} 27. Rd1 {[%clk 0:01:18]}  Rxa2 {[%clk 0:01:50]} 28. Rdd7 {[%clk 0:01:17]}  Rf4 {[%clk 0:01:50]} 29. f3 {[%clk 0:01:18]}  Rb2 {[%clk 0:01:41]} 30. Rxb7 {[%clk 0:01:16]}  c4 {[%clk 0:01:42]} 31. bxc4 {[%clk 0:01:11]}  Rxb7 {[%clk 0:01:42]} 32. Rxb7 {[%clk 0:01:11]}  Rxc4 {[%clk 0:01:43]} 33. Ra7 {[%clk 0:01:11]}  Rc1+ {[%clk 0:01:39]} 34. Kf2 {[%clk 0:01:11]}  Rc2+ {[%clk 0:01:39]} 35. Kg3 {[%clk 0:01:10]}  Ra2 {[%clk 0:01:38]} 36. Rc7 {[%clk 0:01:09]}  Rc2 {[%clk 0:01:36]} 37. Ra7 {[%clk 0:01:09]}  Rc5 {[%clk 0:01:37]} 38. Kf4 {[%clk 0:01:09]}  Kf6 {[%clk 0:01:34]} 39. g4 {[%clk 0:01:09]}  h5 {[%clk 0:01:34]} 40. h4 {[%clk 0:01:06]}  Ke6 {[%clk 0:01:27]} 41. Ra8 {[%clk 0:01:01]}  Rc4+ {[%clk 0:01:18]} 42. Kg5 {[%clk 0:01:00]}  Rc5+ {[%clk 0:01:07]} 43. Kh6 {[%clk 0:00:59]}  hxg4 {[%clk 0:00:52]} 44. fxg4 {[%clk 0:00:57]}  Rc4 {[%clk 0:00:53]} 45. Kg5 {[%clk 0:00:49]}  f6+ {[%clk 0:00:53]} 46. Kxg6 {[%clk 0:00:49]}  Rxg4+ {[%clk 0:00:53]} 47. Kh5 {[%clk 0:00:50]}  Ra4 {[%clk 0:00:54]} 48. Ra6 {[%clk 0:00:45]}  Kd6 {[%clk 0:00:51]} 49. Kg6 {[%clk 0:00:41]}  Rxh4 {[%clk 0:00:50]} 50. Rxa5 {[%clk 0:00:41]}  Rf4 {[%clk 0:00:51]} 51. Ra8 {[%clk 0:00:40]}  c5 {[%clk 0:00:50]} 52. Kf7 {[%clk 0:00:40]}  Kd5 {[%clk 0:00:49]} 53. Rd8+ {[%clk 0:00:39]}  Kc4 {[%clk 0:00:50]} 54. Ke6 {[%clk 0:00:40]}  Kc3 {[%clk 0:00:50]} 55. Rc8 {[%clk 0:00:40]}  c4 {[%clk 0:00:50]} 56. Kd5 {[%clk 0:00:40]}  Kd3 {[%clk 0:00:50]} 57. Rh8 {[%clk 0:00:35]}  c3 {[%clk 0:00:49]} 58. Rh3+ {[%clk 0:00:36]}  Kc2 {[%clk 0:00:49]} 59. Rh8 {[%clk 0:00:31]}  Kb2 {[%clk 0:00:46]} 60. Rb8+ {[%clk 0:00:26]}  Kc1 {[%clk 0:00:47]} 0-1


[Site "https://www.chess.com"]

[Event "Titled Tuesday Blitz November 07 Late 2023"]
[White "Makarian, Rudik"]
[Black "Novik, Maxim"]
[WhiteFideId "44105681"]
[BlackFideId "4102924"]
[WhiteElo "2967"]
[BlackElo "2488"]
[Result "1-0"]
[Round "1"]
[TimeControl "180+1"]
[Date "2023.11.07"]
[WhiteClock "0:00:06"]
[BlackClock "0:00:07"]
[Board "21"]

1. d4 {[%clk 0:02:54]}  Nf6 {[%clk 0:02:57]} 2. c4 {[%clk 0:02:53]}  g6 {[%clk 0:02:57]} 3. Nc3 {[%clk 0:02:53]}  d5 {[%clk 0:02:57]} 4. Bg5 {[%clk 0:02:52]}  Ne4 {[%clk 0:02:57]} 5. cxd5 {[%clk 0:02:52]}  Nxg5 {[%clk 0:02:57]} 6. h4 {[%clk 0:02:52]}  Ne4 {[%clk 0:02:50]} 7. Nxe4 {[%clk 0:02:52]}  Qxd5 {[%clk 0:02:50]} 8. Nc3 {[%clk 0:02:53]}  Qd8 {[%clk 0:02:50]} 9. h5 {[%clk 0:02:54]}  Bg7 {[%clk 0:02:50]} 10. e3 {[%clk 0:02:54]}  c5 {[%clk 0:02:49]} 11. h6 {[%clk 0:02:42]}  Bf6 {[%clk 0:02:46]} 12. d5 {[%clk 0:02:05]}  O-O {[%clk 0:02:44]} 13. Nf3 {[%clk 0:02:06]}  e6 {[%clk 0:02:44]} 14. Bc4 {[%clk 0:02:04]}  exd5 {[%clk 0:02:34]} 15. Bxd5 {[%clk 0:01:57]}  Nc6 {[%clk 0:02:31]} 16. O-O {[%clk 0:01:43]}  Bg4 {[%clk 0:02:30]} 17. Bxc6 {[%clk 0:01:40]}  bxc6 {[%clk 0:02:30]} 18. Ne4 {[%clk 0:01:35]}  Bxb2 {[%clk 0:02:27]} 19. Rb1 {[%clk 0:01:33]}  Bh8 {[%clk 0:02:26]} 20. Nxc5 {[%clk 0:01:28]}  Qe7 {[%clk 0:02:25]} 21. Nb3 {[%clk 0:01:15]}  Rad8 {[%clk 0:02:24]} 22. Qe2 {[%clk 0:01:15]}  Rd5 {[%clk 0:02:16]} 23. Rfd1 {[%clk 0:01:14]}  Rh5 {[%clk 0:02:13]} 24. Nbd4 {[%clk 0:01:14]}  Rxh6 {[%clk 0:02:09]} 25. Nxc6 {[%clk 0:01:11]}  Qc5 {[%clk 0:01:50]} 26. Qb5 {[%clk 0:00:56]}  Qxb5 {[%clk 0:01:31]} 27. Ne7+ {[%clk 0:00:56]}  Kg7 {[%clk 0:01:31]} 28. Rxb5 {[%clk 0:00:57]}  Rh5 {[%clk 0:01:28]} 29. Rxh5 {[%clk 0:00:56]}  Bxh5 {[%clk 0:01:27]} 30. Rd7 {[%clk 0:00:56]}  a5 {[%clk 0:01:24]} 31. Ra7 {[%clk 0:00:56]}  Re8 {[%clk 0:01:19]} 32. Nd5 {[%clk 0:00:53]}  Kg8 {[%clk 0:01:03]} 33. Rxa5 {[%clk 0:00:52]}  Bg4 {[%clk 0:01:03]} 34. Nd4 {[%clk 0:00:45]}  h5 {[%clk 0:00:58]} 35. Ra6 {[%clk 0:00:40]}  Bxd4 {[%clk 0:00:47]} 36. exd4 {[%clk 0:00:40]}  Re1+ {[%clk 0:00:46]} 37. Kh2 {[%clk 0:00:41]}  Kg7 {[%clk 0:00:43]} 38. Ne3 {[%clk 0:00:38]}  Be2 {[%clk 0:00:34]} 39. Ra7 {[%clk 0:00:34]}  Ra1 {[%clk 0:00:32]} 40. d5 {[%clk 0:00:31]}  Bb5 {[%clk 0:00:26]} 41. Kg3 {[%clk 0:00:26]}  Kf6 {[%clk 0:00:23]} 42. Ra5 {[%clk 0:00:19]}  Bd7 {[%clk 0:00:22]} 43. Ra6+ {[%clk 0:00:14]}  Ke7 {[%clk 0:00:21]} 44. Kf4 {[%clk 0:00:11]}  f6 {[%clk 0:00:20]} 45. Ke4 {[%clk 0:00:10]}  Rg1 {[%clk 0:00:18]} 46. Ra7 {[%clk 0:00:08]}  g5 {[%clk 0:00:16]} 47. Nf5+ {[%clk 0:00:08]}  Ke8 {[%clk 0:00:16]} 48. Ng7+ {[%clk 0:00:05]}  Ke7 {[%clk 0:00:15]} 49. Nxh5 {[%clk 0:00:05]}  Re1+ {[%clk 0:00:14]} 50. Kf3 {[%clk 0:00:03]}  Re5 {[%clk 0:00:10]} 51. Kg3 {[%clk 0:00:02]}  Rxd5 {[%clk 0:00:10]} 52. f3 {[%clk 0:00:02]}  Rd2 {[%clk 0:00:10]} 53. Kh2 {[%clk 0:00:02]}  Ke6 {[%clk 0:00:09]} 54. a3 {[%clk 0:00:03]}  Bb5 {[%clk 0:00:08]} 55. Kg3 {[%clk 0:00:03]}  Bf1 {[%clk 0:00:08]} 56. Ng7+ {[%clk 0:00:03]}  Ke5 {[%clk 0:00:08]} 57. Ra5+ {[%clk 0:00:04]}  Kd6 {[%clk 0:00:08]} 58. Nf5+ {[%clk 0:00:04]}  Ke6 {[%clk 0:00:09]} 59. Ne3 {[%clk 0:00:05]}  Re2 {[%clk 0:00:09]} 60. Nxf1 {[%clk 0:00:05]}  f5 {[%clk 0:00:09]} 61. Ra6+ {[%clk 0:00:06]}  Ke5 {[%clk 0:00:09]} 62. Ra5+ {[%clk 0:00:05]}  Kf6 {[%clk 0:00:09]} 63. Kh2 {[%clk 0:00:05]}  f4 {[%clk 0:00:09]} 64. Kg1 {[%clk 0:00:05]}  Kg6 {[%clk 0:00:08]} 65. Nh2 {[%clk 0:00:06]}  Re1+ {[%clk 0:00:07]} 66. Kf2 {[%clk 0:00:06]}  Ra1 {[%clk 0:00:08]} 67. Ng4 {[%clk 0:00:07]}  Ra2+ {[%clk 0:00:08]} 68. Kg1 {[%clk 0:00:07]}  Kh5 {[%clk 0:00:08]} 69. Ra6 {[%clk 0:00:06]}  Kh4 {[%clk 0:00:08]} 70. Nf2 {[%clk 0:00:05]}  Kg3 {[%clk 0:00:07]} 71. Nh1+ {[%clk 0:00:05]}  Kh4 {[%clk 0:00:07]} 72. Rh6# {[%clk 0:00:06]} 1-0


[Site "https://www.chess.com"]

[Event "Titled Tuesday Blitz November 07 Late 2023"]
[White "subham777"]
[Black "Sarana, Alexey"]
[BlackFideId "24133795"]
[WhiteElo "2488"]
[BlackElo "2964"]
[Result "0-1"]
[Round "1"]
[TimeControl "180+1"]
[Date "2023.11.07"]
[WhiteClock "0:00:03"]
[BlackClock "0:00:58"]
[Board "22"]

1. e4 {[%clk 0:03:00]}  c5 {[%clk 0:02:58]} 2. Nf3 {[%clk 0:03:00]}  d6 {[%clk 0:02:59]} 3. d4 {[%clk 0:03:00]}  cxd4 {[%clk 0:03:00]} 4. Qxd4 {[%clk 0:03:01]}  Nc6 {[%clk 0:03:00]} 5. Bb5 {[%clk 0:03:01]}  Bd7 {[%clk 0:03:00]} 6. Bxc6 {[%clk 0:03:01]}  Bxc6 {[%clk 0:03:01]} 7. c4 {[%clk 0:03:01]}  f5 {[%clk 0:02:53]} 8. Nc3 {[%clk 0:02:57]}  e5 {[%clk 0:02:50]} 9. Qd3 {[%clk 0:02:46]}  Nf6 {[%clk 0:02:46]} 10. exf5 {[%clk 0:02:40]}  Qd7 {[%clk 0:02:05]} 11. Ng5 {[%clk 0:02:33]}  O-O-O {[%clk 0:01:38]} 12. Ne6 {[%clk 0:02:22]}  Re8 {[%clk 0:01:37]} 13. Nd5 {[%clk 0:02:21]}  Rxe6 {[%clk 0:01:26]} 14. fxe6 {[%clk 0:02:22]}  Qxe6 {[%clk 0:01:27]} 15. Be3 {[%clk 0:02:03]}  Nxd5 {[%clk 0:01:24]} 16. cxd5 {[%clk 0:02:02]}  Qxd5 {[%clk 0:01:25]} 17. Qxd5 {[%clk 0:02:00]}  Bxd5 {[%clk 0:01:25]} 18. O-O {[%clk 0:01:59]}  a6 {[%clk 0:01:26]} 19. Rac1+ {[%clk 0:01:56]}  Bc6 {[%clk 0:01:26]} 20. Rfd1 {[%clk 0:01:50]}  Be7 {[%clk 0:01:26]} 21. a3 {[%clk 0:01:46]}  Kd7 {[%clk 0:01:25]} 22. b4 {[%clk 0:01:44]}  g5 {[%clk 0:01:22]} 23. Rd2 {[%clk 0:01:34]}  Ke6 {[%clk 0:01:23]} 24. Rcd1 {[%clk 0:01:32]}  h5 {[%clk 0:01:22]} 25. Re1 {[%clk 0:01:15]}  g4 {[%clk 0:01:21]} 26. Bb6 {[%clk 0:01:11]}  h4 {[%clk 0:01:20]} 27. g3 {[%clk 0:01:06]}  Bf3 {[%clk 0:01:13]} 28. Be3 {[%clk 0:00:57]}  Rc8 {[%clk 0:01:10]} 29. Rb2 {[%clk 0:00:51]}  Rc3 {[%clk 0:01:09]} 30. a4 {[%clk 0:00:48]}  Ra3 {[%clk 0:01:06]} 31. a5 {[%clk 0:00:42]}  h3 {[%clk 0:01:07]} 32. Reb1 {[%clk 0:00:38]}  d5 {[%clk 0:01:04]} 33. Rb3 {[%clk 0:00:32]}  Ra4 {[%clk 0:01:04]} 34. Bc5 {[%clk 0:00:26]}  Bg5 {[%clk 0:00:59]} 35. b5 {[%clk 0:00:23]}  Rxa5 {[%clk 0:00:59]} 36. bxa6 {[%clk 0:00:23]}  bxa6 {[%clk 0:00:59]} 37. Rb6+ {[%clk 0:00:22]}  Kf5 {[%clk 0:00:59]} 38. Be3 {[%clk 0:00:21]}  Bxe3 {[%clk 0:00:59]} 39. fxe3 {[%clk 0:00:22]}  Ra2 {[%clk 0:00:59]} 40. R1b2 {[%clk 0:00:21]}  Ra3 {[%clk 0:00:58]} 41. R2b3 {[%clk 0:00:21]}  Ra5 {[%clk 0:00:58]} 42. Rc6 {[%clk 0:00:20]}  Ra1+ {[%clk 0:00:58]} 43. Kf2 {[%clk 0:00:20]}  Ra2+ {[%clk 0:00:58]} 44. Kg1 {[%clk 0:00:17]}  Rg2+ {[%clk 0:00:58]} 45. Kf1 {[%clk 0:00:18]}  Rxh2 {[%clk 0:00:58]} 46. Rbb6 {[%clk 0:00:18]}  Ra2 {[%clk 0:00:56]} 47. Rf6+ {[%clk 0:00:08]}  Ke4 {[%clk 0:00:57]} 48. Rb4+ {[%clk 0:00:08]}  Kxe3 {[%clk 0:00:57]} 49. Rb3+ {[%clk 0:00:09]}  Ke4 {[%clk 0:00:57]} 50. Rb4+ {[%clk 0:00:08]}  d4 {[%clk 0:00:58]} 51. Re6 {[%clk 0:00:03]}  h2 {[%clk 0:00:58]} 0-1


[Site "https://www.chess.com"]

[Event "Titled Tuesday Blitz November 07 Late 2023"]
[White "Minko, Dmitry"]
[Black "Sjugirov, Sanan"]
[WhiteFideId "24188468"]
[BlackFideId "4189302"]
[WhiteElo "2486"]
[BlackElo "2956"]
[Result "0-1"]
[Round "1"]
[TimeControl "180+1"]
[Date "2023.11.07"]
[WhiteClock "0:00:36"]
[BlackClock "0:00:33"]
[Board "24"]

1. e4 {[%clk 0:03:00]}  c5 {[%clk 0:03:00]} 2. Nf3 {[%clk 0:02:57]}  d6 {[%clk 0:03:00]} 3. d4 {[%clk 0:02:57]}  cxd4 {[%clk 0:03:01]} 4. Nxd4 {[%clk 0:02:58]}  Nf6 {[%clk 0:03:02]} 5. Nc3 {[%clk 0:02:59]}  a6 {[%clk 0:03:02]} 6. f3 {[%clk 0:02:59]}  e5 {[%clk 0:03:03]} 7. Nb3 {[%clk 0:02:59]}  Be6 {[%clk 0:03:03]} 8. Be3 {[%clk 0:03:00]}  Be7 {[%clk 0:03:03]} 9. Qd2 {[%clk 0:03:00]}  O-O {[%clk 0:03:02]} 10. Nd5 {[%clk 0:02:55]}  Bxd5 {[%clk 0:02:53]} 11. exd5 {[%clk 0:02:55]}  Nbd7 {[%clk 0:02:54]} 12. Na5 {[%clk 0:02:55]}  Qc7 {[%clk 0:02:52]} 13. c4 {[%clk 0:02:54]}  e4 {[%clk 0:02:46]} 14. Be2 {[%clk 0:02:37]}  exf3 {[%clk 0:02:45]} 15. Bxf3 {[%clk 0:02:37]}  Ne5 {[%clk 0:02:45]} 16. Be2 {[%clk 0:02:38]}  Ne4 {[%clk 0:02:45]} 17. Qb4 {[%clk 0:02:34]}  Rae8 {[%clk 0:02:21]} 18. O-O {[%clk 0:02:30]}  Bg5 {[%clk 0:02:03]} 19. Bxg5 {[%clk 0:02:00]}  Nxg5 {[%clk 0:02:04]} 20. Rac1 {[%clk 0:01:57]}  Ne4 {[%clk 0:01:47]} 21. Nb3 {[%clk 0:01:51]}  b6 {[%clk 0:01:31]} 22. Bf3 {[%clk 0:01:29]}  Nd3 {[%clk 0:01:28]} 23. Qa3 {[%clk 0:01:24]}  Nxc1 {[%clk 0:01:27]} 24. Rxc1 {[%clk 0:01:24]}  a5 {[%clk 0:01:20]} 25. Nd4 {[%clk 0:01:17]}  Nc5 {[%clk 0:01:08]} 26. Qc3 {[%clk 0:01:03]}  g6 {[%clk 0:01:07]} 27. Rf1 {[%clk 0:01:01]}  Qe7 {[%clk 0:01:06]} 28. Nb5 {[%clk 0:00:59]}  Qd8 {[%clk 0:00:57]} 29. a3 {[%clk 0:00:57]}  Re5 {[%clk 0:00:51]} 30. b4 {[%clk 0:00:55]}  axb4 {[%clk 0:00:52]} 31. axb4 {[%clk 0:00:56]}  Ne4 {[%clk 0:00:52]} 32. Qd4 {[%clk 0:00:56]}  Ng5 {[%clk 0:00:48]} 33. c5 {[%clk 0:00:43]}  bxc5 {[%clk 0:00:47]} 34. bxc5 {[%clk 0:00:43]}  Nxf3+ {[%clk 0:00:47]} 35. Rxf3 {[%clk 0:00:42]}  Re1+ {[%clk 0:00:36]} 36. Kf2 {[%clk 0:00:43]}  Rfe8 {[%clk 0:00:33]} 37. Nxd6 {[%clk 0:00:35]}  R8e2+ {[%clk 0:00:33]} 38. Kg3 {[%clk 0:00:35]}  Qg5+ {[%clk 0:00:34]} 39. Kh3 {[%clk 0:00:36]}  Qxg2+ {[%clk 0:00:33]} 0-1


[Site "https://www.chess.com"]

[Event "Titled Tuesday Blitz November 07 Late 2023"]
[White "Khismatullin, Denis"]
[Black "Remolar Gallen, Jose"]
[WhiteFideId "4142578"]
[BlackFideId "2215187"]
[WhiteElo "2951"]
[BlackElo "2479"]
[Result "1-0"]
[Round "1"]
[TimeControl "180+1"]
[Date "2023.11.07"]
[WhiteClock "0:01:22"]
[BlackClock "0:00:49"]
[Board "25"]

1. c4 {[%clk 0:03:00]}  e5 {[%clk 0:02:57]} 2. Nc3 {[%clk 0:03:00]}  Nf6 {[%clk 0:02:56]} 3. e3 {[%clk 0:02:59]}  c6 {[%clk 0:02:50]} 4. Nf3 {[%clk 0:02:56]}  e4 {[%clk 0:02:49]} 5. Nd4 {[%clk 0:02:56]}  d5 {[%clk 0:02:49]} 6. cxd5 {[%clk 0:02:56]}  cxd5 {[%clk 0:02:49]} 7. d3 {[%clk 0:02:57]}  exd3 {[%clk 0:02:33]} 8. Bxd3 {[%clk 0:02:56]}  Bc5 {[%clk 0:02:31]} 9. O-O {[%clk 0:02:55]}  O-O {[%clk 0:02:31]} 10. Nce2 {[%clk 0:02:51]}  Re8 {[%clk 0:02:30]} 11. b3 {[%clk 0:02:50]}  Nbd7 {[%clk 0:02:23]} 12. Bb2 {[%clk 0:02:50]}  Ne5 {[%clk 0:02:23]} 13. Bb5 {[%clk 0:02:47]}  Bd7 {[%clk 0:02:21]} 14. Rc1 {[%clk 0:02:45]}  Bb6 {[%clk 0:02:21]} 15. Bxd7 {[%clk 0:02:41]}  Qxd7 {[%clk 0:02:22]} 16. Ng3 {[%clk 0:02:37]}  Rac8 {[%clk 0:02:17]} 17. Qe2 {[%clk 0:02:37]}  Rxc1 {[%clk 0:02:02]} 18. Rxc1 {[%clk 0:02:38]}  Rc8 {[%clk 0:02:02]} 19. Rd1 {[%clk 0:02:35]}  Nc6 {[%clk 0:01:43]} 20. Ndf5 {[%clk 0:02:31]}  Bd8 {[%clk 0:01:36]} 21. Qf3 {[%clk 0:02:22]}  d4 {[%clk 0:01:23]} 22. Nxd4 {[%clk 0:02:17]}  Nxd4 {[%clk 0:01:22]} 23. Bxd4 {[%clk 0:02:16]}  Qe6 {[%clk 0:01:17]} 24. h3 {[%clk 0:02:13]}  b6 {[%clk 0:01:17]} 25. Nf5 {[%clk 0:02:10]}  Rc2 {[%clk 0:01:10]} 26. g4 {[%clk 0:01:52]}  h5 {[%clk 0:00:56]} 27. gxh5 {[%clk 0:01:40]}  Ne4 {[%clk 0:00:54]} 28. Bxg7 {[%clk 0:01:26]}  Rxf2 {[%clk 0:00:50]} 29. Rxd8+ {[%clk 0:01:23]}  Kh7 {[%clk 0:00:49]} 30. Rh8# {[%clk 0:01:22]} 1-0


[Site "https://www.chess.com"]

[Event "Titled Tuesday Blitz November 07 Late 2023"]
[White "Baches Garcia, Guillermo"]
[Black "Bortnyk, Mykola"]
[WhiteFideId "2209764"]
[BlackFideId "14120836"]
[WhiteElo "2473"]
[BlackElo "2923"]
[Result "0-1"]
[Round "1"]
[TimeControl "180+1"]
[Date "2023.11.07"]
[WhiteClock "0:00:00"]
[BlackClock "0:00:19"]
[Board "30"]

1. d4 {[%clk 0:03:00]}  Nf6 {[%clk 0:02:53]} 2. Nf3 {[%clk 0:03:01]}  e6 {[%clk 0:02:53]} 3. Bg5 {[%clk 0:03:01]}  Be7 {[%clk 0:02:50]} 4. Nbd2 {[%clk 0:03:02]}  d5 {[%clk 0:02:50]} 5. e3 {[%clk 0:03:01]}  Nbd7 {[%clk 0:02:50]} 6. Bd3 {[%clk 0:03:01]}  c5 {[%clk 0:02:50]} 7. c3 {[%clk 0:03:00]}  h6 {[%clk 0:02:51]} 8. Bf4 {[%clk 0:03:00]}  Nh5 {[%clk 0:02:49]} 9. Be5 {[%clk 0:02:56]}  Nxe5 {[%clk 0:02:46]} 10. Nxe5 {[%clk 0:02:56]}  Nf6 {[%clk 0:02:45]} 11. f4 {[%clk 0:02:55]}  Bd7 {[%clk 0:02:31]} 12. Qf3 {[%clk 0:02:51]}  Qb6 {[%clk 0:02:25]} 13. Rb1 {[%clk 0:02:43]}  cxd4 {[%clk 0:02:17]} 14. exd4 {[%clk 0:02:42]}  Bb5 {[%clk 0:02:16]} 15. Bc2 {[%clk 0:02:25]}  Nd7 {[%clk 0:02:03]} 16. Qh5 {[%clk 0:02:13]}  Nxe5 {[%clk 0:01:48]} 17. fxe5 {[%clk 0:02:13]}  g6 {[%clk 0:01:30]} 18. Qf3 {[%clk 0:02:09]}  Rf8 {[%clk 0:01:30]} 19. Bd3 {[%clk 0:02:07]}  f6 {[%clk 0:01:28]} 20. Bxb5+ {[%clk 0:01:41]}  Qxb5 {[%clk 0:01:28]} 21. exf6 {[%clk 0:01:34]}  Rxf6 {[%clk 0:01:26]} 22. Qe2 {[%clk 0:01:34]}  Qa4 {[%clk 0:01:23]} 23. Nf3 {[%clk 0:01:27]}  O-O-O {[%clk 0:01:14]} 24. O-O {[%clk 0:01:19]}  Rdf8 {[%clk 0:01:14]} 25. b3 {[%clk 0:01:01]}  Qc6 {[%clk 0:01:11]} 26. c4 {[%clk 0:01:01]}  dxc4 {[%clk 0:01:01]} 27. bxc4 {[%clk 0:00:59]}  Kb8 {[%clk 0:01:01]} 28. Rb3 {[%clk 0:00:47]}  Bd6 {[%clk 0:00:58]} 29. Rfb1 {[%clk 0:00:46]}  R8f7 {[%clk 0:00:49]} 30. c5 {[%clk 0:00:41]}  Bf4 {[%clk 0:00:47]} 31. Ne5 {[%clk 0:00:36]}  Bxe5 {[%clk 0:00:45]} 32. Qxe5+ {[%clk 0:00:33]}  Kc8 {[%clk 0:00:46]} 33. h3 {[%clk 0:00:24]}  g5 {[%clk 0:00:43]} 34. Re3 {[%clk 0:00:11]}  Qd5 {[%clk 0:00:33]} 35. Rbe1 {[%clk 0:00:11]}  Qc4 {[%clk 0:00:27]} 36. c6 {[%clk 0:00:08]}  bxc6 {[%clk 0:00:23]} 37. Kh2 {[%clk 0:00:08]}  Qd5 {[%clk 0:00:23]} 38. Rb3 {[%clk 0:00:08]}  Qxe5+ {[%clk 0:00:23]} 39. dxe5 {[%clk 0:00:09]}  Rf2 {[%clk 0:00:23]} 40. Reb1 {[%clk 0:00:09]}  c5 {[%clk 0:00:16]} 41. Rb8+ {[%clk 0:00:09]}  Kc7 {[%clk 0:00:17]} 42. R1b7+ {[%clk 0:00:09]}  Kc6 {[%clk 0:00:18]} 43. Rxf7 {[%clk 0:00:08]}  Rxf7 {[%clk 0:00:19]} 44. Re8 {[%clk 0:00:00]}  Kd5 {[%clk 0:00:19]} 0-1


[Site "https://www.chess.com"]

[Event "Titled Tuesday Blitz November 07 Late 2023"]
[White "Melkumyan, Hrant"]
[Black "Ventura Bolet, Maxim"]
[WhiteFideId "13302485"]
[BlackFideId "22238824"]
[WhiteElo "2915"]
[BlackElo "2467"]
[Result "1-0"]
[Round "1"]
[TimeControl "180+1"]
[Date "2023.11.07"]
[WhiteClock "0:01:05"]
[BlackClock "0:00:35"]
[Board "33"]

1. c4 {[%clk 0:03:00]}  g6 {[%clk 0:02:58]} 2. d4 {[%clk 0:02:59]}  Bg7 {[%clk 0:02:58]} 3. Nc3 {[%clk 0:02:59]}  d6 {[%clk 0:02:58]} 4. e4 {[%clk 0:02:57]}  e5 {[%clk 0:02:58]} 5. dxe5 {[%clk 0:02:55]}  dxe5 {[%clk 0:02:59]} 6. Qxd8+ {[%clk 0:02:54]}  Kxd8 {[%clk 0:03:00]} 7. Be3 {[%clk 0:02:54]}  c6 {[%clk 0:02:58]} 8. O-O-O+ {[%clk 0:02:53]}  Ke8 {[%clk 0:02:51]} 9. h4 {[%clk 0:02:48]}  Be6 {[%clk 0:02:46]} 10. h5 {[%clk 0:02:47]}  Nd7 {[%clk 0:02:40]} 11. h6 {[%clk 0:02:44]}  Bf8 {[%clk 0:02:41]} 12. Nf3 {[%clk 0:02:39]}  f6 {[%clk 0:02:41]} 13. g3 {[%clk 0:02:08]}  b6 {[%clk 0:02:38]} 14. Bh3 {[%clk 0:02:07]}  Bxh3 {[%clk 0:02:38]} 15. Rxh3 {[%clk 0:02:07]}  Bc5 {[%clk 0:02:38]} 16. Bxc5 {[%clk 0:01:58]}  Nxc5 {[%clk 0:02:38]} 17. Rd6 {[%clk 0:01:55]}  Rc8 {[%clk 0:02:31]} 18. Rh1 {[%clk 0:01:53]}  Ke7 {[%clk 0:02:02]} 19. Rhd1 {[%clk 0:01:48]}  Nxh6 {[%clk 0:02:02]} 20. b4 {[%clk 0:01:44]}  Nf7 {[%clk 0:01:42]} 21. bxc5 {[%clk 0:01:44]}  Nxd6 {[%clk 0:01:43]} 22. cxd6+ {[%clk 0:01:43]}  Ke6 {[%clk 0:01:41]} 23. c5 {[%clk 0:01:43]}  Rhd8 {[%clk 0:01:36]} 24. Na4 {[%clk 0:01:41]}  Rb8 {[%clk 0:01:09]} 25. Nd2 {[%clk 0:01:35]}  bxc5 {[%clk 0:00:59]} 26. Nc4 {[%clk 0:01:31]}  Rb5 {[%clk 0:00:56]} 27. a3 {[%clk 0:01:25]}  f5 {[%clk 0:00:53]} 28. exf5+ {[%clk 0:01:23]}  gxf5 {[%clk 0:00:53]} 29. Kc2 {[%clk 0:01:22]}  f4 {[%clk 0:00:52]} 30. Nc3 {[%clk 0:01:16]}  Rb7 {[%clk 0:00:50]} 31. Re1 {[%clk 0:01:15]}  fxg3 {[%clk 0:00:49]} 32. Rxe5+ {[%clk 0:01:12]}  Kd7 {[%clk 0:00:47]} 33. fxg3 {[%clk 0:01:13]}  Kc8 {[%clk 0:00:47]} 34. Rxc5 {[%clk 0:01:13]}  Rg7 {[%clk 0:00:45]} 35. Ne4 {[%clk 0:01:10]}  Rg4 {[%clk 0:00:43]} 36. Kd3 {[%clk 0:01:07]}  Re8 {[%clk 0:00:40]} 37. Ne5 {[%clk 0:01:05]}  Rd8 {[%clk 0:00:35]} 38. Nxg4 {[%clk 0:01:05]} 1-0


[Site "https://www.chess.com"]